fUST/lending_fUST_20250809
["ID","MTS","AMOUNT","RATE_DAILY","PERIOD"]
[378089824,1754721054878,-1179.78,0.00023287,2]
[378089825,1754721054887,-2244.2,0.00023287,2]
[378089826,1754721054897,-460.0,0.00023287,2]
[378089827,1754721054906,-460.0,0.00023287,2]
[378089828,1754721054916,-486.04,0.00023287,2]
[378089829,1754721054925,-460.0,0.00023287,2]
[378089830,1754721054935,-460.0,0.00023287,2]
[378089831,1754721054945,-545.0,0.00023287,2]
[378089832,1754721054955,-460.0,0.00023287,2]
[378089833,1754721054968,-1262.23,0.00023287,2]
[378089834,1754721054978,-460.0,0.00023287,2]
[378089835,1754721054987,-596.41,0.00023287,2]
[378089836,1754721054996,-460.0,0.00023287,2]
[378089837,1754721055006,-460.0,0.00023287,2]
[378089838,1754721055015,-460.0,0.00023287,2]
[378089839,1754721055024,-460.0,0.00023287,2]
[378089840,1754721055034,-690.35,0.00023287,2]
[378089841,1754721055044,-1239.79,0.00023287,2]
[378089842,1754721055055,-868.95,0.00023287,2]
[378089843,1754721055064,-460.0,0.00023287,2]
[378089844,1754721055073,-1091.38,0.00023287,2]
[378089845,1754721055082,-487.73,0.00023287,2]
[378089846,1754721055092,-565.67136484,0.00023287,2]
[378089847,1754721055101,-460.0,0.00023287,2]
[378089848,1754721055111,-460.0,0.00023287,2]
[378089849,1754721055120,-1730.53,0.00023287,2]
[378089850,1754721055129,-460.0,0.00023287,2]
[378089851,1754721055138,-460.0,0.00023287,2]
[378089852,1754721055147,-460.0,0.00023287,2]
[378089853,1754721055157,-570.5,0.00023287,2]
[378089854,1754721055168,-460.0,0.00023287,2]
[378089855,1754721055177,-1042.72,0.00023287,2]
[378089856,1754721055293,-460.0,0.00023287,2]
[378089857,1754721055303,-3431.05,0.00023287,2]
[378089858,1754721055313,-460.0,0.00023287,2]
[378089859,1754721055322,-460.0,0.00023287,2]
[378089860,1754721055331,-833.86,0.00023287,2]
[378089861,1754721055340,-460.0,0.00023287,2]
[378089862,1754721055349,-460.0,0.00023287,2]
[378089863,1754721055358,-622.29,0.00023287,2]
[378089864,1754721055368,-460.0,0.00023287,2]
[378089865,1754721055377,-460.0,0.00023287,2]
[378089866,1754721055386,-480.94,0.00023287,2]
[378089867,1754721055396,-460.0,0.00023287,2]
[378089868,1754721055405,-500.0,0.00023288,2]
[378089869,1754721055414,-31116.70024846,0.00023317,2]
[378089870,1754721055423,-1000.0,0.00023321,2]
[378089871,1754721055433,-1000.0,0.00023321,2]
[378089872,1754721055442,-1000.0,0.00023321,2]
[378089873,1754721055451,-1000.0,0.00023321,2]
[378089874,1754721055460,-500.0,0.00023321,2]
[378089875,1754721055470,-1000.0,0.00023321,2]
[378089876,1754721055479,-1000.0,0.00023321,2]
[378089877,1754721055489,-1000.0,0.00023321,2]
[378089878,1754721055498,-1000.0,0.00023321,2]
[378089879,1754721055507,-458.90736978,0.00023321,2]
[378089880,1754721055516,-1000.0,0.00023321,2]
[378089881,1754721055525,-1001.97502455,0.00023321,2]
[378089882,1754721055534,-1069.07647635,0.00023321,2]
[378089883,1754721055543,-500.0,0.00023321,2]
[378089884,1754721055552,-1000.0,0.00023321,2]
[378089885,1754721055561,-1001.21025951,0.00023321,2]
[378089886,1754721055571,-1098.57718967,0.00023321,2]
[378089887,1754721055580,-1000.0,0.00023321,2]
[378089888,1754721055589,-1003.69426877,0.00023321,2]
[378089889,1754721055598,-919.10996033,0.00023321,2]
[378089890,1754721055607,-1000.0,0.00023321,2]
[378089891,1754721055617,-1000.0,0.00023321,2]
[378089892,1754721055626,-1000.0,0.00023321,2]
[378089893,1754721055635,-1000.0,0.00023321,2]
[378089894,1754721055644,-1000.0,0.00023321,2]
[378089895,1754721055654,-1000.0,0.00023321,2]
[378089896,1754721055662,-394.7992208,0.00023321,2]
[378089897,1754721055672,-896.13352281,0.00023321,2]
[378089898,1754721055681,-1001.21377576,0.00023321,2]
[378089899,1754721055690,-250.0,0.00023321,2]
[378089900,1754721055699,-1000.0,0.00023321,2]
[378089901,1754721055709,-1000.0,0.00023321,2]
[378089902,1754721055719,-1001.02231364,0.00023321,2]
[378089903,1754721055728,-1000.0,0.00023321,2]
[378089904,1754721055738,-500.0,0.00023321,2]
[378089905,1754721055747,-1000.0,0.00023321,2]
[378089906,1754721055756,-1000.0,0.00023321,2]
[378089907,1754721055765,-1000.0,0.00023321,2]
[378089908,1754721055775,-1000.0,0.00023321,2]
[378089909,1754721055784,-500.0,0.00023321,2]
[378089910,1754721055794,-1000.0,0.00023321,2]
[378089911,1754721055803,-1000.0,0.00023321,2]
[378089912,1754721055812,-461.55179734,0.00023377,2]
[378089913,1754721055822,-12666.14847857,0.00023377,2]
[378089914,1754721055831,-160.0,0.00023381,2]
[378089915,1754721055841,-231.92402426,0.00023381,2]
[378089916,1754721055850,-312.16666667,0.00023381,2]
[378089917,1754721055859,-160.0,0.00023381,2]
[378089918,1754721055869,-160.0,0.00023381,2]
[378089919,1754721055879,-160.0,0.00023381,2]
[378089920,1754721055888,-160.0,0.00023381,2]
[378089921,1754721055899,-216.61183532,0.00023381,2]
[378089922,1754721055909,-420.0,0.00023382,2]
[378089923,1754721055919,-842.95011917,0.00023385,2]
[378089924,1754721055930,-215.40758176,0.00023385,2]
[378089925,1754721055939,-160.0,0.00023385,2]
[378089926,1754721055949,-160.0,0.00023385,2]
[378089927,1754721055960,-151.0,0.000234,9]
[378089928,1754721055970,-4701.21268918,0.00023409,2]
[378089929,1754721055985,-150.0,0.00023479,2]
[378089930,1754721055995,-500.0,0.00023479,2]
[378089931,1754721056005,-151.0,0.00023524,2]
[378089932,1754721056015,-460.0,0.00023561,2]
[378089933,1754721056024,-460.0,0.00023561,2]
[378089934,1754721056034,-460.0,0.00023561,2]
[378089935,1754721056044,-366.22171395,0.00023561,2]
[378089936,1754721056054,-501.47,0.00023561,2]
[378089937,1754721056064,-460.0,0.00023561,2]
[378089938,1754721056074,-460.0,0.00023561,2]
[378089939,1754721056083,-460.0,0.00023561,2]
[378089940,1754721056093,-460.0,0.00023561,2]
[378089941,1754721056103,-460.0,0.00023561,2]
[378089942,1754721056112,-750.91,0.00023561,2]
[378089943,1754721056122,-460.0,0.00023561,2]
[378089944,1754721056131,-531.05,0.00023561,2]
[378089945,1754721056140,-460.0,0.00023561,2]
[378089946,1754721056150,-460.0,0.00023561,2]
[378089947,1754721056159,-460.0,0.00023561,2]
[378089948,1754721056168,-460.0,0.00023561,2]
[378089949,1754721056178,-460.0,0.00023561,2]
[378089950,1754721056187,-662.38,0.00023561,2]
[378089951,1754721056196,-460.0,0.00023561,2]
[378089952,1754721056205,-460.0,0.00023561,2]
[378089953,1754721056215,-460.0,0.00023561,2]
[378089954,1754721056223,-846.83,0.00023561,2]
[378089955,1754721056232,-460.0,0.00023561,2]
[378089956,1754721056241,-460.0,0.00023561,2]
[378089957,1754721056251,-460.0,0.00023561,2]
[378089958,1754721056260,-460.0,0.00023561,2]
[378089959,1754721056269,-460.0,0.00023561,2]
[378089960,1754721056286,-460.0,0.00023561,2]
[378089961,1754721056301,-460.0,0.00023561,2]
[378089962,1754721056310,-460.0,0.00023561,2]
[378089963,1754721056319,-460.0,0.00023561,2]
[378089964,1754721056327,-460.0,0.00023561,2]
[378089965,1754721056343,-460.0,0.00023561,2]
[378089966,1754721056354,-460.0,0.00023561,2]
[378089967,1754721056363,-460.0,0.00023561,2]
[378089968,1754721056372,-460.0,0.00023561,2]
[378089969,1754721056381,-401.32490209,0.00023561,2]
[378089970,1754721056391,-460.0,0.00023561,2]
[378089971,1754721056399,-460.0,0.00023561,2]
[378089972,1754721056408,-487.37,0.00023561,2]
[378089973,1754721056417,-460.0,0.00023561,2]
[378089974,1754721056427,-460.0,0.00023561,2]
[378089975,1754721056436,-460.0,0.00023561,2]
[378089976,1754721056445,-460.0,0.00023561,2]
[378089977,1754721056454,-460.0,0.00023561,2]
[378089978,1754721056465,-460.0,0.00023561,2]
[378089979,1754721056474,-460.0,0.00023561,2]
[378089980,1754721056483,-460.0,0.00023561,2]
[378089981,1754721056493,-460.0,0.00023561,2]
[378089982,1754721056502,-1296.46,0.00023561,2]
[378089983,1754721056512,-1211.37,0.00023561,2]
[378089984,1754721056521,-460.0,0.00023561,2]
[378089985,1754721056531,-1408.08,0.00023561,2]
[378089986,1754721056540,-689.75,0.00023561,2]
[378089987,1754721056549,-366.81371358,0.00023561,2]
[378089988,1754721056558,-460.0,0.00023561,2]
[378089989,1754721056568,-460.0,0.00023561,2]
[378089990,1754721056578,-1084.78,0.00023561,2]
[378089991,1754721056588,-2640.67,0.00023561,2]
[378089992,1754721056597,-1238.18,0.00023561,2]
[378089993,1754721056606,-568.38,0.00023561,2]
[378089994,1754721056615,-460.0,0.00023561,2]
[378089995,1754721056625,-460.0,0.00023561,2]
[378089996,1754721056634,-774.83,0.00023561,2]
[378089997,1754721056644,-460.0,0.00023561,2]
[378089998,1754721056655,-705.68,0.00023561,2]
[378089999,1754721056665,-593.19,0.00023561,2]
[378090000,1754721056675,-1168.01,0.00023561,2]
[378090001,1754721056686,-460.0,0.00023561,2]
[378090002,1754721056696,-460.0,0.00023561,2]
[378090003,1754721056705,-554.86,0.00023561,2]
[378090004,1754721056716,-460.0,0.00023561,2]
[378090005,1754721056725,-460.0,0.00023561,2]
[378090006,1754721056735,-460.0,0.00023561,2]
[378090007,1754721056746,-460.0,0.00023561,2]
[378090008,1754721056756,-2187.57,0.00023561,2]
[378090009,1754721056768,-891.51,0.00023561,2]
[378090010,1754721056778,-460.0,0.00023561,2]
[378090011,1754721056790,-460.0,0.00023561,2]
[378090012,1754721056800,-1468.96,0.00023561,2]
[378090013,1754721056810,-5203.2,0.00023561,2]
[378090014,1754721056822,-871.09,0.00023561,2]
[378090015,1754721056832,-673.08,0.00023561,2]
[378090016,1754721056843,-516.08,0.00023561,2]
[378090017,1754721056852,-460.0,0.00023561,2]
[378090018,1754721056862,-460.0,0.00023561,2]
[378090019,1754721056872,-2063.88,0.00023561,2]
[378090020,1754721056882,-460.0,0.00023561,2]
[378090021,1754721056891,-460.0,0.00023561,2]
[378090022,1754721056901,-150.88458714,0.00023561,2]
[378090023,1754721056911,-763.98,0.00023561,2]
[378090024,1754721056920,-460.0,0.00023561,2]
[378090025,1754721056929,-1179.78,0.00023561,2]
[378090026,1754721056939,-2244.2,0.00023561,2]
[378090027,1754721056948,-460.0,0.00023561,2]
[378090028,1754721056958,-460.0,0.00023561,2]
[378090029,1754721056970,-486.04,0.00023561,2]
[378090030,1754721056979,-460.0,0.00023561,2]
[378090031,1754721056988,-460.0,0.00023561,2]
[378090032,1754721056997,-545.0,0.00023561,2]
[378090033,1754721057007,-1262.23,0.00023561,2]
[378090034,1754721057017,-460.0,0.00023561,2]
[378090035,1754721057027,-596.41,0.00023561,2]
[378090036,1754721057036,-460.0,0.00023561,2]
[378090037,1754721057046,-460.0,0.00023561,2]
[378090038,1754721057055,-460.0,0.00023561,2]
[378090039,1754721057065,-460.0,0.00023561,2]
[378090040,1754721057076,-690.35,0.00023561,2]
[378090041,1754721057086,-1239.79,0.00023561,2]
[378090042,1754721057098,-868.95,0.00023561,2]
[378090043,1754721057108,-460.0,0.00023561,2]
[378090044,1754721057118,-1091.38,0.00023561,2]
[378090045,1754721057128,-487.73,0.00023561,2]
[378090046,1754721057137,-460.0,0.00023561,2]
[378090047,1754721057146,-460.0,0.00023561,2]
[378090048,1754721057156,-1730.53,0.00023561,2]
[378090049,1754721057165,-460.0,0.00023561,2]
[378090050,1754721057174,-460.0,0.00023561,2]
[378090051,1754721057183,-460.0,0.00023561,2]
[378090052,1754721057193,-570.5,0.00023561,2]
[378090053,1754721057203,-460.0,0.00023561,2]
[378090054,1754721057214,-1042.72,0.00023561,2]
[378090055,1754721057224,-460.0,0.00023561,2]
[378090056,1754721057237,-3431.05,0.00023561,2]
[378090057,1754721057247,-460.0,0.00023561,2]
[378090058,1754721057256,-460.0,0.00023561,2]
[378090059,1754721057266,-833.86,0.00023561,2]
[378090060,1754721057275,-460.0,0.00023561,2]
[378090061,1754721057285,-460.0,0.00023561,2]
[378090062,1754721057294,-622.29,0.00023561,2]
[378090063,1754721057303,-460.0,0.00023561,2]
[378090064,1754721057312,-460.0,0.00023561,2]
[378090065,1754721057321,-480.94,0.00023561,2]
[378090066,1754721057331,-460.0,0.00023561,2]
[378090067,1754721057340,-160.0,0.00023592,2]
[378090068,1754721057349,-151.0,0.000236,5]
[378090069,1754721057359,-1500.0,0.00023616,2]
[378090070,1754721057368,-2000.0,0.00023616,2]
[378090071,1754721057378,-1010.77723133,0.00023616,2]
[378090072,1754721057387,-1000.0,0.00023616,2]
[378090073,1754721057397,-1000.0,0.00023616,2]
[378090074,1754721057406,-2000.0,0.00023616,2]
[378090075,1754721057517,-2016.94563007,0.00023616,2]
[378090076,1754721057527,-2000.0,0.00023616,2]
[378090077,1754721057537,-153.0,0.00023673,2]
[378090078,1754721057547,-153.0,0.00023673,2]
[378090079,1754721057556,-153.0,0.00023673,2]
[378090080,1754721057566,-153.0,0.00023673,2]
[378090081,1754721057576,-153.0,0.00023673,2]
[378090082,1754721057585,-153.0,0.00023673,2]
[378090083,1754721057594,-151.0,0.00023798,2]
[378090084,1754721057603,-1000.0,0.00023816,2]
[378090085,1754721057612,-2000.0,0.00023816,2]
[378090086,1754721057622,-460.0,0.00023835,2]
[378090087,1754721057631,-460.0,0.00023835,2]
[378090088,1754721057640,-460.0,0.00023835,2]
[378090089,1754721057650,-501.47,0.00023835,2]
[378090090,1754721057660,-460.0,0.00023835,2]
[378090091,1754721057669,-460.0,0.00023835,2]
[378090092,1754721057679,-460.0,0.00023835,2]
[378090093,1754721057688,-460.0,0.00023835,2]
[378090094,1754721057698,-460.0,0.00023835,2]
[378090095,1754721057707,-750.91,0.00023835,2]
[378090096,1754721057717,-460.0,0.00023835,2]
[378090097,1754721057726,-531.05,0.00023835,2]
[378090098,1754721057735,-460.0,0.00023835,2]
[378090099,1754721057745,-460.0,0.00023835,2]
[378090100,1754721057755,-460.0,0.00023835,2]
[378090101,1754721057763,-460.0,0.00023835,2]
[378090102,1754721057773,-460.0,0.00023835,2]
[378090103,1754721057783,-662.38,0.00023835,2]
[378090104,1754721057792,-511.94073108,0.00023835,2]
[378090105,1754721057801,-460.0,0.00023835,2]
[378090106,1754721057811,-460.0,0.00023835,2]
[378090107,1754721057820,-542.13076698,0.00023835,2]
[378090108,1754721057830,-846.83,0.00023835,2]
[378090109,1754721057839,-460.0,0.00023835,2]
[378090110,1754721057848,-460.0,0.00023835,2]
[378090111,1754721057857,-460.0,0.00023835,2]
[378090112,1754721057867,-460.0,0.00023835,2]
[378090113,1754721057876,-592.07444814,0.00023835,2]
[378090114,1754721057885,-460.0,0.00023835,2]
[378090115,1754721057895,-460.0,0.00023835,2]
[378090116,1754721057904,-460.0,0.00023835,2]
[378090117,1754721057913,-460.0,0.00023835,2]
[378090118,1754721057923,-460.0,0.00023835,2]
[378090119,1754721057932,-460.0,0.00023835,2]
[378090120,1754721057942,-460.0,0.00023835,2]
[378090121,1754721057951,-460.0,0.00023835,2]
[378090122,1754721057962,-460.0,0.00023835,2]
[378090123,1754721057972,-460.0,0.00023835,2]
[378090124,1754721057981,-487.37,0.00023835,2]
[378090125,1754721057991,-460.0,0.00023835,2]
[378090126,1754721058000,-460.0,0.00023835,2]
[378090127,1754721058010,-460.0,0.00023835,2]
[378090128,1754721058020,-460.0,0.00023835,2]
[378090129,1754721058029,-460.0,0.00023835,2]
[378090130,1754721058040,-460.0,0.00023835,2]
[378090131,1754721058050,-460.0,0.00023835,2]
[378090132,1754721058060,-460.0,0.00023835,2]
[378090133,1754721058070,-460.0,0.00023835,2]
[378090134,1754721058079,-1296.46,0.00023835,2]
[378090135,1754721058089,-1211.37,0.00023835,2]
[378090136,1754721058099,-460.0,0.00023835,2]
[378090137,1754721058108,-689.75,0.00023835,2]
[378090138,1754721058117,-1408.08,0.00023835,2]
[378090139,1754721058127,-460.0,0.00023835,2]
[378090140,1754721058136,-460.0,0.00023835,2]
[378090141,1754721058146,-1084.78,0.00023835,2]
[378090142,1754721058156,-2640.67,0.00023835,2]
[378090143,1754721058165,-1238.18,0.00023835,2]
[378090144,1754721058175,-568.38,0.00023835,2]
[378090145,1754721058184,-460.0,0.00023835,2]
[378090146,1754721058193,-460.0,0.00023835,2]
[378090147,1754721058202,-774.83,0.00023835,2]
[378090148,1754721058211,-460.0,0.00023835,2]
[378090149,1754721058220,-705.68,0.00023835,2]
[378090150,1754721058229,-593.19,0.00023835,2]
[378090151,1754721058239,-1168.01,0.00023835,2]
[378090152,1754721058248,-460.0,0.00023835,2]
[378090153,1754721058258,-460.0,0.00023835,2]
[378090154,1754721058267,-554.86,0.00023835,2]
[378090155,1754721058276,-460.0,0.00023835,2]
[378090156,1754721058286,-460.0,0.00023835,2]
[378090157,1754721058295,-460.0,0.00023835,2]
[378090158,1754721058305,-460.0,0.00023835,2]
[378090159,1754721058314,-2187.57,0.00023835,2]
[378090160,1754721058324,-891.51,0.00023835,2]
[378090161,1754721058334,-460.0,0.00023835,2]
[378090162,1754721058343,-460.0,0.00023835,2]
[378090163,1754721058353,-1468.96,0.00023835,2]
[378090164,1754721058362,-5203.2,0.00023835,2]
[378090165,1754721058371,-871.09,0.00023835,2]
[378090166,1754721058381,-673.08,0.00023835,2]
[378090167,1754721058390,-516.08,0.00023835,2]
[378090168,1754721058400,-236.5627385,0.00023835,2]
[378090169,1754721058409,-460.0,0.00023835,2]
[378090170,1754721058418,-2063.88,0.00023835,2]
[378090171,1754721058428,-460.0,0.00023835,2]
[378090172,1754721058437,-460.0,0.00023835,2]
[378090173,1754721058446,-763.98,0.00023835,2]
[378090174,1754721058456,-460.0,0.00023835,2]
[378090175,1754721058466,-1179.78,0.00023835,2]
[378090176,1754721058476,-2244.2,0.00023835,2]
[378090177,1754721058485,-460.0,0.00023835,2]
[378090178,1754721058495,-460.0,0.00023835,2]
[378090179,1754721058504,-486.04,0.00023835,2]
[378090180,1754721058514,-460.0,0.00023835,2]
[378090181,1754721058523,-460.0,0.00023835,2]
[378090182,1754721058532,-545.0,0.00023835,2]
[378090183,1754721058542,-1262.23,0.00023835,2]
[378090184,1754721058551,-460.0,0.00023835,2]
[378090185,1754721058560,-596.41,0.00023835,2]
[378090186,1754721058570,-460.0,0.00023835,2]
[378090187,1754721058579,-460.0,0.00023835,2]
[378090188,1754721058588,-460.0,0.00023835,2]
[378090189,1754721058598,-460.0,0.00023835,2]
[378090190,1754721058608,-690.35,0.00023835,2]
[378090191,1754721058618,-1239.79,0.00023835,2]
[378090192,1754721058629,-868.95,0.00023835,2]
[378090193,1754721058638,-251.26041855,0.00023835,2]
[378090194,1754721058647,-1091.38,0.00023835,2]
[378090195,1754721058657,-460.0,0.00023835,2]
[378090196,1754721058666,-460.0,0.00023835,2]
[378090197,1754721058675,-487.73,0.00023835,2]
[378090198,1754721058685,-1730.53,0.00023835,2]
[378090199,1754721058695,-460.0,0.00023835,2]
[378090200,1754721058704,-460.0,0.00023835,2]
[378090201,1754721058715,-460.0,0.00023835,2]
[378090202,1754721058724,-460.0,0.00023835,2]
[378090203,1754721058734,-570.5,0.00023835,2]
[378090204,1754721058743,-1042.72,0.00023835,2]
[378090205,1754721058753,-460.0,0.00023835,2]
[378090206,1754721058763,-3431.05,0.00023835,2]
[378090207,1754721058772,-460.0,0.00023835,2]
[378090208,1754721058782,-344.75791798,0.00023835,2]
[378090209,1754721058791,-833.86,0.00023835,2]
[378090210,1754721058800,-460.0,0.00023835,2]
[378090211,1754721058809,-460.0,0.00023835,2]
[378090212,1754721058818,-622.29,0.00023835,2]
[378090213,1754721058828,-460.0,0.00023835,2]
[378090214,1754721058838,-460.0,0.00023835,2]
[378090215,1754721058847,-480.94,0.00023835,2]
[378090216,1754721058857,-460.0,0.00023835,2]
[378090217,1754721058866,-512.52012634,0.00023868,2]
[378090218,1754721058876,-1500.0,0.00023868,2]
[378090219,1754721058885,-500.0,0.00023868,2]
[378090220,1754721058896,-1500.0,0.00023868,2]
[378090221,1754721058905,-1001.78237328,0.00023868,2]
[378090222,1754721058917,-739.35201776,0.00023868,2]
[378090223,1754721058926,-502.38537494,0.00023868,2]
[378090224,1754721058935,-1500.0,0.00023868,2]
[378090225,1754721058944,-1007.53751155,0.00023868,2]
[378090226,1754721058954,-1500.0,0.00023868,2]
[378090227,1754721058969,-1108.15732362,0.00023868,2]
[378090228,1754721058980,-501.22332869,0.00023868,2]
[378090229,1754721058989,-1504.47162244,0.00023868,2]
[378090230,1754721058999,-1001.83906,0.00023868,2]
[378090231,1754721059010,-1489.56413626,0.00023868,2]
[378090232,1754721059020,-500.92627552,0.00023868,2]
[378090233,1754721059029,-350.0,0.00023868,2]
[378090234,1754721059039,-332.17512409,0.00023868,2]
[378090235,1754721059049,-1500.0,0.00023868,2]
[378090236,1754721059059,-384.37993711,0.00023868,2]
[378090237,1754721059068,-1016.1618568,0.00023868,2]
[378090238,1754721059078,-501.03349238,0.00023868,2]
[378090239,1754721059087,-1500.0,0.00023868,2]
[378090240,1754721059096,-501.64131963,0.00023868,2]
[378090241,1754721059106,-663.24717106,0.00023868,2]
[378090242,1754721059115,-501.64750758,0.00023868,2]
[378090243,1754721059125,-151.0,0.000239,9]
[378090244,1754721059135,-150.0,0.00023929,2]
[378090245,1754721059144,-636.0,0.00023934,2]
[378090246,1754721059153,-2150.0,0.00023934,2]
[378090247,1754721059163,-973.15,0.00023934,2]
[378090248,1754721059172,-408.0,0.00023934,2]
[378090249,1754721059181,-415.728,0.00023934,2]
[378090250,1754721059191,-366.11,0.00024,14]
[378090251,1754721059201,-151.0,0.00024013,2]
[378090252,1754721059211,-151.0,0.00024013,2]
[378090253,1754721059221,-151.0,0.00024013,2]
[378090254,1754721059231,-151.0,0.00024013,2]
[378090255,1754721059240,-151.0,0.00024013,2]
[378090256,1754721059249,-151.0,0.00024013,2]
[378090257,1754721059259,-151.0,0.00024013,2]
[378090258,1754721059268,-151.0,0.00024013,2]
[378090259,1754721059277,-151.0,0.00024013,2]
[378090260,1754721059286,-151.0,0.00024013,2]
[378090261,1754721059296,-151.0,0.00024013,2]
[378090262,1754721059306,-151.0,0.00024013,2]
[378090263,1754721059315,-151.0,0.00024013,2]
[378090264,1754721059325,-151.0,0.00024013,2]
[378090265,1754721059334,-151.0,0.00024013,2]
[378090266,1754721059344,-151.0,0.00024013,2]
[378090267,1754721059353,-151.0,0.00024013,2]
[378090268,1754721059363,-151.0,0.00024013,2]
[378090269,1754721059372,-151.0,0.00024013,2]
[378090270,1754721059382,-151.0,0.00024013,2]
[378090271,1754721059392,-151.0,0.00024013,2]
[378090272,1754721059401,-151.0,0.00024013,2]
[378090273,1754721059411,-151.0,0.00024013,2]
[378090274,1754721059421,-250.0,0.00024027,2]
[378090275,1754721059430,-151.0,0.00024072,2]
[378090276,1754721059440,-151.0,0.000241,5]
[378090277,1754721059548,-460.0,0.00024109,2]
[378090278,1754721059558,-501.47,0.00024109,2]
[378090279,1754721059567,-460.0,0.00024109,2]
[378090280,1754721059577,-460.0,0.00024109,2]
[378090281,1754721059586,-359.5197744,0.00024109,2]
[378090282,1754721059595,-460.0,0.00024109,2]
[378090283,1754721059605,-492.50533123,0.00024109,2]
[378090284,1754721059614,-750.91,0.00024109,2]
[378090285,1754721059623,-460.0,0.00024109,2]
[378090286,1754721059633,-531.05,0.00024109,2]
[378090287,1754721059642,-460.0,0.00024109,2]
[378090288,1754721059651,-460.0,0.00024109,2]
[378090289,1754721059660,-460.0,0.00024109,2]
[378090290,1754721059669,-517.09,0.00024109,2]
[378090291,1754721059678,-460.0,0.00024109,2]
[378090292,1754721059688,-662.38,0.00024109,2]
[378090293,1754721059697,-460.0,0.00024109,2]
[378090294,1754721059706,-460.0,0.00024109,2]
[378090295,1754721059716,-846.83,0.00024109,2]
[378090296,1754721059726,-460.0,0.00024109,2]
[378090297,1754721059735,-411.60115639,0.00024109,2]
[378090298,1754721059744,-460.0,0.00024109,2]
[378090299,1754721059754,-460.0,0.00024109,2]
[378090300,1754721059763,-460.0,0.00024109,2]
[378090301,1754721059772,-460.0,0.00024109,2]
[378090302,1754721059781,-460.0,0.00024109,2]
[378090303,1754721059790,-460.0,0.00024109,2]
[378090304,1754721059799,-460.0,0.00024109,2]
[378090305,1754721059808,-401.80871424,0.00024109,2]
[378090306,1754721059817,-460.0,0.00024109,2]
[378090307,1754721059827,-460.0,0.00024109,2]
[378090308,1754721059836,-460.0,0.00024109,2]
[378090309,1754721059846,-487.37,0.00024109,2]
[378090310,1754721059855,-460.0,0.00024109,2]
[378090311,1754721059864,-460.0,0.00024109,2]
[378090312,1754721059874,-460.0,0.00024109,2]
[378090313,1754721059884,-253.17705799,0.00024109,2]
[378090314,1754721060080,-206.82294201,0.00024109,2]
[378090315,1754721060090,-481.46321827,0.00024109,2]
[378090316,1754721060100,-460.0,0.00024109,2]
[378090317,1754721060110,-460.0,0.00024109,2]
[378090318,1754721060120,-460.0,0.00024109,2]
[378090319,1754721060130,-460.0,0.00024109,2]
[378090320,1754721060140,-1296.46,0.00024109,2]
[378090321,1754721060150,-1211.37,0.00024109,2]
[378090322,1754721060159,-460.0,0.00024109,2]
[378090323,1754721060169,-689.75,0.00024109,2]